fUSD/lending_fUSD_20240409
["ID","MTS","AMOUNT","RATE_DAILY","PERIOD"]
[321952121,1712649045928,-1699.94,0.00020821,2]
[321952122,1712649045937,-428.2922574,0.00020821,2]
[321952123,1712649045946,-500.0,0.00020821,2]
[321952124,1712649045955,-518.3,0.00020821,2]
[321952125,1712649045964,-500.0,0.00020821,2]
[321952126,1712649045973,-500.0,0.00020821,2]
[321952127,1712649045982,-895.87,0.00020821,2]
[321952128,1712649045992,-563.84908929,0.00020821,2]
[321952129,1712649046001,-500.0,0.00020821,2]
[321952130,1712649046010,-1600.99,0.00020821,2]
[321952131,1712649046019,-917.72,0.00020821,2]
[321952132,1712649046028,-505.5,0.00020821,2]
[321952133,1712649046037,-700.84,0.00020821,2]
[321952134,1712649046046,-500.0,0.00020821,2]
[321952135,1712649046056,-768.57,0.00020821,2]
[321952136,1712649046066,-500.0,0.00020821,2]
[321952137,1712649046076,-617.29,0.00020821,2]
[321952138,1712649046086,-554.96765677,0.00020821,2]
[321952139,1712649046096,-1242.84,0.00020821,2]
[321952140,1712649046106,-500.0,0.00020821,2]
[321952141,1712649046116,-2029.65,0.00020821,2]
[321952142,1712649046125,-500.0,0.00020821,2]
[321952143,1712649046134,-500.0,0.00020821,2]
[321952144,1712649046144,-500.0,0.00020821,2]
[321952145,1712649046153,-2251.62,0.00020821,2]
[321952146,1712649046162,-500.0,0.00020821,2]
[321952147,1712649046171,-2125.91,0.00020821,2]
[321952148,1712649046180,-500.0,0.00020821,2]
[321952149,1712649046189,-500.0,0.00020821,2]
[321952150,1712649046199,-500.0,0.00020821,2]
[321952151,1712649046208,-500.0,0.00020821,2]
[321952152,1712649046217,-332.19341735,0.00020821,2]
[321952153,1712649046226,-1875.56,0.00020821,2]
[321952154,1712649046235,-1006.41,0.00020821,2]
[321952155,1712649046244,-506.74331766,0.00020821,2]
[321952156,1712649046253,-500.0,0.00020821,2]
[321952157,1712649046262,-500.0,0.00020821,2]
[321952158,1712649046271,-623.16,0.00020821,2]
[321952159,1712649046281,-558.20877636,0.00020821,2]
[321952161,1712649046290,-500.0,0.00020821,2]
[321952162,1712649046299,-1581.11,0.00020821,2]
[321952163,1712649046308,-1620.04,0.00020821,2]
[321952164,1712649046319,-500.0,0.00020821,2]
[321952165,1712649046328,-500.0,0.00020821,2]
[321952166,1712649046337,-500.0,0.00020821,2]
[321952168,1712649046347,-500.0,0.00020821,2]
[321952169,1712649046357,-500.0,0.00020821,2]
[321952171,1712649046365,-500.0,0.00020821,2]
[321952172,1712649046377,-500.0,0.00020821,2]
[321952173,1712649046386,-1082.36,0.00020821,2]
[321952174,1712649046397,-500.0,0.00020821,2]
[321952175,1712649046407,-500.0,0.00020821,2]
[321952176,1712649046417,-1349.46,0.00020821,2]
[321952177,1712649046426,-228.44485415,0.00020821,2]
[321952178,1712649046434,-500.0,0.00020821,2]
[321952179,1712649046444,-500.0,0.00020821,2]
[321952180,1712649046453,-1150.46,0.00020821,2]
[321952181,1712649046463,-519.79923074,0.00020821,2]
[321952182,1712649046473,-506.62551477,0.00020821,2]
[321952183,1712649046484,-2479.41,0.00020821,2]
[321952184,1712649046493,-1670.87,0.00020821,2]
[321952185,1712649046504,-500.0,0.00020821,2]
[321952186,1712649046514,-500.0,0.00020821,2]
[321952187,1712649046524,-592.19999211,0.00020821,2]
[321952188,1712649046535,-500.0,0.00020821,2]
[321952189,1712649046544,-521.47085627,0.00020821,2]
[321952190,1712649046553,-519.68674501,0.00020821,2]
[321952191,1712649046563,-957.58,0.00020821,2]
[321952192,1712649046573,-2153.53,0.00020821,2]
[321952193,1712649046582,-500.0,0.00020821,2]
[321952194,1712649046591,-500.0,0.00020821,2]
[321952195,1712649046600,-500.0,0.00020821,2]
[321952196,1712649046609,-500.0,0.00020821,2]
[321952197,1712649046619,-500.0,0.00020821,2]
[321952198,1712649046629,-500.0,0.00020821,2]
[321952199,1712649046638,-893.51,0.00020821,2]
[321952200,1712649046649,-500.0,0.00020821,2]
[321952201,1712649046797,-949.79,0.00020821,2]
[321952202,1712649046821,-500.0,0.00020821,2]
[321952203,1712649046831,-500.0,0.00020821,2]
[321952204,1712649046841,-533.69,0.00020821,2]
[321952205,1712649046850,-503.87846925,0.00020821,2]
[321952206,1712649046860,-781.37,0.00020821,2]
[321952207,1712649046869,-507.12293677,0.00020821,2]
[321952208,1712649046879,-500.0,0.00020821,2]
[321952209,1712649046889,-401.94642614,0.00020821,2]
[321952210,1712649046898,-500.0,0.00020821,2]
[321952211,1712649046907,-887.17,0.00020821,2]
[321952212,1712649046917,-500.0,0.00020821,2]
[321952213,1712649046926,-507.92651632,0.00020821,2]
[321952214,1712649046936,-500.0,0.00020821,2]
[321952215,1712649046945,-500.0,0.00020821,2]
[321952216,1712649046954,-516.37405023,0.00020821,2]
[321952217,1712649046964,-500.0,0.00020821,2]
[321952218,1712649046974,-500.0,0.00020821,2]
[321952219,1712649046983,-545.24730475,0.00020821,2]
[321952220,1712649046992,-512.41094392,0.00020821,2]
[321952221,1712649047001,-500.0,0.00020821,2]
[321952222,1712649047011,-1646.43,0.00020821,2]
[321952223,1712649047020,-500.0,0.00020821,2]
[321952224,1712649047029,-318.18,0.00020821,2]
[321952225,1712649047039,-1747.32,0.00020821,2]
[321952226,1712649047048,-500.0,0.00020821,2]
[321952227,1712649047058,-500.0,0.00020821,2]
[321952228,1712649047069,-1241.11,0.00020821,2]
[321952229,1712649047078,-500.0,0.00020821,2]
[321952230,1712649047087,-500.0,0.00020821,2]
[321952231,1712649047096,-500.0,0.00020821,2]
[321952232,1712649047107,-490.61556125,0.00020821,2]
[321952233,1712649047116,-500.0,0.00020821,2]
[321952234,1712649047126,-1528.38,0.00020821,2]
[321952235,1712649047136,-500.0,0.00020821,2]
[321952236,1712649047146,-500.0,0.00020821,2]
[321952237,1712649047155,-500.0,0.00020821,2]
[321952238,1712649047166,-857.36,0.00020821,2]
[321952239,1712649047175,-1295.15,0.00020821,2]
[321952240,1712649047186,-2038.07,0.00020821,2]
[321952241,1712649047196,-2285.52,0.00020821,2]
[321952242,1712649047205,-500.0,0.00020821,2]
[321952243,1712649047215,-504.65321365,0.00020821,2]
[321952244,1712649047225,-500.0,0.00020821,2]
[321952245,1712649047234,-500.0,0.00020821,2]
[321952246,1712649047245,-616.42,0.00020821,2]
[321952247,1712649047256,-2860.28,0.00020821,2]
[321952248,1712649047266,-500.0,0.00020821,2]
[321952249,1712649047276,-1280.21,0.00020821,2]
[321952250,1712649047286,-500.0,0.00020821,2]
[321952251,1712649047296,-500.0,0.00020821,2]
[321952252,1712649047306,-1017.49,0.00020821,2]
[321952253,1712649047316,-1264.36,0.00020821,2]
[321952254,1712649047326,-558.94,0.00020821,2]
[321952255,1712649047336,-500.0,0.00020821,2]
[321952256,1712649047345,-514.57823485,0.00020821,2]
[321952257,1712649047355,-571.82,0.00020821,2]
[321952258,1712649047365,-500.0,0.00020821,2]
[321952259,1712649047374,-500.0,0.00020821,2]
[321952260,1712649047384,-2325.52,0.00020821,2]
[321952261,1712649047393,-500.0,0.00020821,2]
[321952262,1712649047403,-500.0,0.00020821,2]
[321952263,1712649047412,-500.0,0.00020821,2]
[321952264,1712649047422,-500.0,0.00020821,2]
[321952265,1712649047431,-851.79,0.00020821,2]
[321952266,1712649047441,-686.14,0.00020821,2]
[321952267,1712649047450,-587.36,0.00020821,2]
[321952268,1712649047460,-1568.6,0.00020821,2]
[321952269,1712649047470,-2009.85,0.00020821,2]
[321952270,1712649047480,-1866.62,0.00020821,2]
[321952271,1712649047491,-557.11257484,0.00020821,2]
[321952272,1712649047503,-500.0,0.00020821,2]
[321952273,1712649047513,-507.08989766,0.00020821,2]
[321952274,1712649047523,-524.41,0.00020821,2]
[321952275,1712649047532,-500.0,0.00020821,2]
[321952276,1712649047542,-500.0,0.00020821,2]
[321952277,1712649047551,-2006.87,0.00020821,2]
[321952278,1712649047561,-1086.83,0.00020821,2]
[321952279,1712649047570,-587.06,0.00020821,2]
[321952280,1712649047579,-500.0,0.00020821,2]
[321952281,1712649047589,-500.0,0.00020821,2]
[321952282,1712649047598,-500.0,0.00020821,2]
[321952283,1712649047607,-500.0,0.00020821,2]
[321952284,1712649047616,-569.23941893,0.00020821,2]
[321952285,1712649047626,-500.0,0.00020821,2]
[321952286,1712649047635,-500.0,0.00020821,2]
[321952287,1712649047645,-556.76549647,0.00020821,2]
[321952288,1712649047654,-500.0,0.00020821,2]
[321952289,1712649047665,-1469.91,0.00020821,2]
[321952290,1712649047676,-500.0,0.00020821,2]
[321952291,1712649047687,-1512.85,0.00020821,2]
[321952292,1712649047696,-545.96,0.00020821,2]
[321952293,1712649047706,-500.0,0.00020821,2]
[321952294,1712649047716,-500.0,0.00020821,2]
[321952295,1712649047725,-500.0,0.00020821,2]
[321952296,1712649047736,-500.0,0.00020821,2]
[321952297,1712649047745,-500.0,0.00020821,2]
[321952298,1712649047756,-500.0,0.00020821,2]
[321952299,1712649047767,-1362.24,0.00020821,2]
[321952300,1712649047777,-789.46,0.00020821,2]
[321952301,1712649047787,-500.0,0.00020821,2]
[321952302,1712649047798,-891.37,0.00020821,2]
[321952303,1712649047808,-500.0,0.00020821,2]
[321952304,1712649047819,-500.0,0.00020821,2]
[321952305,1712649047829,-500.0,0.00020821,2]
[321952306,1712649047839,-1740.41,0.00020821,2]
[321952307,1712649047849,-500.0,0.00020821,2]
[321952308,1712649047859,-621.35,0.00020821,2]
[321952309,1712649047869,-501.40229779,0.00020821,2]
[321952310,1712649047879,-600.03,0.00020821,2]
[321952311,1712649047888,-1696.05,0.00020821,2]
[321952312,1712649047898,-500.0,0.00020821,2]
[321952313,1712649047907,-1095.34,0.00020821,2]
[321952314,1712649047917,-1697.5,0.00020821,2]
[321952315,1712649047926,-623.57885393,0.00020821,2]
[321952316,1712649047936,-500.0,0.00020821,2]
[321952317,1712649047945,-626.72,0.00020821,2]
[321952318,1712649047955,-500.0,0.00020821,2]
[321952319,1712649047965,-2926.79,0.00020821,2]
[321952320,1712649047974,-581.52259579,0.00020821,2]
[321952321,1712649047984,-1318.85,0.00020821,2]
[321952322,1712649047995,-500.0,0.00020821,2]
[321952323,1712649048005,-500.0,0.00020821,2]
[321952324,1712649048014,-562.06298359,0.00020821,2]
[321952325,1712649048024,-1146.87,0.00020821,2]
[321952326,1712649048033,-500.0,0.00020821,2]
[321952327,1712649048042,-1348.91,0.00020821,2]
[321952328,1712649048051,-500.0,0.00020821,2]
[321952329,1712649048063,-664.95,0.00020821,2]
[321952330,1712649048072,-608.69279099,0.00020821,2]
[321952331,1712649048082,-700.68,0.00020821,2]
[321952332,1712649048091,-500.0,0.00020821,2]
[321952333,1712649048101,-500.0,0.00020821,2]
[321952334,1712649048110,-1342.28,0.00020821,2]
[321952335,1712649048119,-975.9,0.00020821,2]
[321952336,1712649048128,-748.8,0.00020821,2]
[321952337,1712649048137,-500.0,0.00020821,2]
[321952338,1712649048146,-1444.98,0.00020821,2]
[321952339,1712649048156,-571.37402884,0.00020821,2]
[321952340,1712649048165,-518.7,0.00020821,2]
[321952341,1712649048174,-527.06,0.00020821,2]
[321952342,1712649048184,-500.0,0.00020821,2]
[321952343,1712649048193,-726.4,0.00020821,2]
[321952344,1712649048202,-500.0,0.00020821,2]
[321952345,1712649048211,-1112.71,0.00020821,2]
[321952346,1712649048220,-1718.81,0.00020821,2]
[321952347,1712649048230,-610.94853911,0.00020821,2]
[321952348,1712649048239,-500.0,0.00020821,2]
[321952349,1712649048248,-500.0,0.00020821,2]
[321952350,1712649048257,-500.0,0.00020821,2]
[321952351,1712649048266,-2624.1,0.00020821,2]
[321952352,1712649048275,-500.0,0.00020821,2]
[321952353,1712649048285,-548.67346448,0.00020821,2]
[321952354,1712649048294,-501.04432098,0.00020821,2]
[321952355,1712649048303,-500.0,0.00020821,2]
[321952356,1712649048314,-1493.78,0.00020821,2]
[321952357,1712649048323,-651.76,0.00020821,2]
[321952358,1712649048332,-659.9,0.00020821,2]
[321952359,1712649048341,-523.03,0.00020821,2]
[321952360,1712649048351,-4104.7,0.00020821,2]
[321952361,1712649048362,-648.22,0.00020821,2]
[321952362,1712649048371,-588.67,0.00020821,2]
[321952363,1712649048381,-500.0,0.00020821,2]
[321952364,1712649048390,-1095.9,0.00020821,2]
[321952365,1712649048399,-500.0,0.00020821,2]
[321952366,1712649048409,-499.99711904,0.00020821,2]
[321952367,1712649048418,-500.0,0.00020821,2]
[321952368,1712649048427,-512.03826271,0.00020821,2]
[321952369,1712649048436,-500.0,0.00020821,2]
[321952370,1712649048446,-500.0,0.00020821,2]
[321952371,1712649048455,-1189.81,0.00020821,2]
[321952372,1712649048464,-514.71,0.00020821,2]
[321952373,1712649048473,-500.0,0.00020821,2]
[321952374,1712649048483,-1278.37,0.00020821,2]
[321952375,1712649048496,-500.0,0.00020821,2]
[321952376,1712649048506,-820.21,0.00020821,2]
[321952377,1712649048517,-500.0,0.00020821,2]
[321952378,1712649048528,-500.0,0.00020821,2]
[321952379,1712649048538,-500.0,0.00020821,2]
[321952380,1712649048549,-789.82,0.00020821,2]
[321952381,1712649048559,-500.0,0.00020821,2]
[321952382,1712649048571,-500.0,0.00020821,2]
[321952383,1712649048583,-500.0,0.00020821,2]
[321952384,1712649048593,-1088.14,0.00020821,2]
[321952385,1712649048603,-874.52,0.00020821,2]
[321952386,1712649048613,-500.0,0.00020821,2]
[321952387,1712649048622,-2536.97,0.00020821,2]
[321952388,1712649048631,-500.0,0.00020821,2]
[321952389,1712649048641,-500.0,0.00020821,2]
[321952390,1712649048650,-500.0,0.00020821,2]
[321952391,1712649048659,-517.00594667,0.00020821,2]
[321952392,1712649048669,-500.0,0.00020821,2]
[321952393,1712649048678,-730.25,0.00020821,2]
[321952394,1712649048687,-500.0,0.00020821,2]
[321952395,1712649048697,-500.0,0.00020821,2]
[321952396,1712649048706,-500.0,0.00020821,2]
[321952397,1712649048715,-1157.81,0.00020821,2]
[321952398,1712649048724,-1500.79,0.00020821,2]
[321952399,1712649048734,-500.0,0.00020821,2]
[321952400,1712649048743,-1117.12,0.00020821,2]
[321952401,1712649048752,-500.0,0.00020821,2]
[321952402,1712649048763,-812.68,0.00020821,2]
[321952403,1712649048773,-500.0,0.00020821,2]
[321952404,1712649048782,-607.52,0.00020821,2]
[321952405,1712649048792,-500.0,0.00020821,2]
[321952406,1712649048801,-876.46,0.00020821,2]
[321952407,1712649048810,-500.0,0.00020821,2]
[321952408,1712649048823,-690.4,0.00020821,2]
[321952409,1712649048833,-500.0,0.00020821,2]
[321952410,1712649048842,-500.0,0.00020821,2]
[321952411,1712649048852,-500.0,0.00020821,2]
[321952412,1712649048861,-500.0,0.00020821,2]
[321952413,1712649048871,-1461.81,0.00020821,2]
[321952414,1712649048880,-303.81049751,0.00020821,2]
[321952415,1712649048890,-500.0,0.00020821,2]
[321952416,1712649048899,-1117.98,0.00020821,2]
[321952417,1712649048908,-500.0,0.00020821,2]
[321952418,1712649048917,-500.0,0.00020821,2]
[321952419,1712649048927,-500.0,0.00020821,2]
[321952420,1712649048936,-683.76,0.00020821,2]
[321952421,1712649048946,-500.0,0.00020821,2]
[321952422,1712649048955,-2134.17,0.00020821,2]
[321952423,1712649048965,-520.87969131,0.00020821,2]
[321952424,1712649048975,-509.35112448,0.00020821,2]
[321952425,1712649048984,-500.0,0.00020821,2]
[321952426,1712649048994,-500.0,0.00020821,2]
[321952427,1712649049003,-500.0,0.00020821,2]
[321952428,1712649049012,-500.0,0.00020821,2]
[321952429,1712649049022,-997.73,0.00020821,2]
[321952430,1712649049031,-1597.67,0.00020821,2]
[321952431,1712649049353,-500.0,0.00020821,2]
[321952432,1712649049363,-500.0,0.00020821,2]
[321952433,1712649049374,-788.83,0.00020821,2]
[321952434,1712649049383,-867.74,0.00020821,2]
[321952435,1712649049392,-500.0,0.00020821,2]
[321952436,1712649049411,-1548.04,0.00020821,2]
[321952437,1712649049420,-500.0,0.00020821,2]
[321952438,1712649049430,-1306.72,0.00020821,2]
[321952439,1712649049440,-689.42,0.00020821,2]
[321952440,1712649049449,-806.25,0.00020821,2]
[321952441,1712649049459,-662.02,0.00020821,2]
[321952442,1712649049468,-2698.87,0.00020821,2]
[321952443,1712649049478,-1504.67,0.00020821,2]
[321952444,1712649049490,-500.0,0.00020821,2]
[321952445,1712649049505,-500.0,0.00020821,2]
[321952446,1712649049514,-547.11,0.00020821,2]
[321952447,1712649049524,-500.0,0.00020821,2]
[321952448,1712649049534,-1283.97,0.00020821,2]
[321952449,1712649049544,-516.79953535,0.00020821,2]
[321952450,1712649049553,-803.04,0.00020821,2]
[321952451,1712649049564,-500.0,0.00020821,2]
[321952452,1712649049575,-510.84,0.00020821,2]
[321952453,1712649049584,-2937.43,0.00020821,2]
[321952454,1712649049593,-500.0,0.00020821,2]
[321952455,1712649049603,-500.0,0.00020821,2]
[321952456,1712649049613,-531.11243201,0.00020821,2]
[321952457,1712649049622,-2965.02,0.00020821,2]
[321952458,1712649049631,-500.0,0.00020821,2]
[321952459,1712649049640,-500.0,0.00020821,2]
[321952460,1712649049649,-500.0,0.00020821,2]
[321952461,1712649049659,-1260.22,0.00020821,2]
[321952462,1712649049670,-500.0,0.00020821,2]
[321952463,1712649049681,-500.0,0.00020821,2]
[321952464,1712649049690,-956.66,0.00020821,2]
[321952465,1712649049700,-811.62,0.00020821,2]
[321952466,1712649049710,-1480.78,0.00020821,2]
[321952467,1712649049718,-500.0,0.00020821,2]
[321952468,1712649049728,-500.0,0.00020821,2]
[321952469,1712649049738,-511.78254284,0.00020821,2]
[321952470,1712649049747,-540.92890172,0.00020821,2]
[321952471,1712649049756,-1916.8,0.00020821,2]
[321952472,1712649049766,-1262.69,0.00020821,2]
[321952473,1712649049776,-500.0,0.00020821,2]
[321952474,1712649049785,-834.24,0.00020821,2]
[321952475,1712649049795,-500.0,0.00020821,2]
[321952476,1712649049804,-7560.48,0.00020821,2]
[321952477,1712649049814,-500.0,0.00020821,2]
[321952478,1712649049823,-500.0,0.00020821,2]
[321952479,1712649049833,-9293.24,0.00020821,2]
[321952480,1712649049842,-500.0,0.00020821,2]
[321952481,1712649049851,-2532.58,0.00020821,2]
[321952482,1712649049861,-516.07035791,0.00020821,2]
[321952483,1712649049870,-500.0,0.00020821,2]
[321952484,1712649049879,-1454.02,0.00020821,2]
[321952485,1712649049888,-500.0,0.00020821,2]
[321952486,1712649049897,-500.0,0.00020821,2]
[321952487,1712649049906,-500.0,0.00020821,2]
[321952488,1712649049915,-500.0,0.00020821,2]
[321952489,1712649049924,-741.13,0.00020821,2]
[321952490,1712649049934,-500.0,0.00020821,2]
[321952491,1712649049943,-500.0,0.00020821,2]
[321952492,1712649049952,-500.0,0.00020821,2]
[321952493,1712649049961,-1541.29,0.00020821,2]
[321952494,1712649049970,-500.0,0.00020821,2]
[321952495,1712649049980,-5759.37,0.00020821,2]
[321952496,1712649049989,-500.0,0.00020821,2]
[321952497,1712649049998,-527.05,0.00020821,2]
[321952498,1712649050007,-14406.75,0.00020821,2]
[321952499,1712649050016,-1756.19,0.00020821,2]
[321952500,1712649050026,-500.0,0.00020821,2]
[321952501,1712649050036,-993.3,0.00020821,2]
[321952502,1712649050045,-500.0,0.00020821,2]
[321952503,1712649050056,-500.0,0.00020821,2]
[321952504,1712649050066,-1973.32,0.00020821,2]
[321952505,1712649050075,-500.0,0.00020821,2]
[321952506,1712649050085,-519.76,0.00020821,2]
[321952507,1712649050095,-500.0,0.00020821,2]
[321952508,1712649050104,-1088.84,0.00020821,2]
[321952509,1712649050114,-500.0,0.00020821,2]
[321952510,1712649050124,-500.0,0.00020821,2]
[321952511,1712649050133,-1773.87,0.00020821,2]
[321952512,1712649050143,-8328.64,0.00020821,2]
[321952513,1712649050152,-855.18,0.00020821,2]
[321952514,1712649050161,-500.0,0.00020821,2]
[321952515,1712649050171,-500.0,0.00020821,2]
[321952516,1712649050180,-3180.13,0.00020821,2]
[321952517,1712649050189,-1935.18,0.00020821,2]
[321952518,1712649050199,-500.0,0.00020821,2]
[321952519,1712649050208,-500.0,0.00020821,2]
[321952520,1712649050218,-834.07,0.00020821,2]
[321952521,1712649050227,-925.79,0.00020821,2]
[321952522,1712649050236,-3598.23,0.00020821,2]
[321952523,1712649050246,-531.01,0.00020821,2]
[321952524,1712649050256,-500.0,0.00020821,2]
[321952525,1712649050266,-5519.22,0.00020821,2]
[321952526,1712649050275,-1846.2,0.00020821,2]
[321952527,1712649050285,-500.0,0.00020821,2]
[321952528,1712649050295,-500.0,0.00020821,2]
[321952529,1712649050305,-500.0,0.00020821,2]
[321952530,1712649050316,-18787.5,0.00020821,2]
[321952531,1712649050325,-527.49,0.00020821,2]
[321952532,1712649050334,-500.0,0.00020821,2]
[321952533,1712649050343,-500.0,0.00020821,2]
[321952534,1712649050353,-1214.8,0.00020821,2]
[321952535,1712649050364,-1770.51,0.00020821,2]
[321952536,1712649050374,-389.50560636,0.00020821,2]
[321952537,1712649050384,-500.0,0.00020821,2]
[321952538,1712649050393,-500.0,0.00020821,2]
[321952539,1712649050403,-1012.59,0.00020821,2]
[321952540,1712649050413,-500.0,0.00020821,2]
[321952541,1712649050423,-535.32637096,0.00020821,2]
[321952542,1712649050432,-513.74,0.00020821,2]
[321952543,1712649050442,-500.0,0.00020821,2]
[321952544,1712649050451,-5092.15,0.00020821,2]
[321952545,1712649050462,-500.0,0.00020821,2]
[321952546,1712649050472,-556.74377467,0.00020821,2]
[321952547,1712649050482,-5851.02,0.00020821,2]
[321952548,1712649050496,-3196.46,0.00020821,2]
[321952549,1712649050505,-3015.88,0.00020821,2]
[321952550,1712649050515,-1497.18,0.00020821,2]
[321952551,1712649050524,-500.0,0.00020821,2]
[321952552,1712649050534,-3163.72,0.00020821,2]
[321952553,1712649050544,-1565.06,0.00020821,2]
[321952554,1712649050553,-2647.61,0.00020821,2]
[321952555,1712649050563,-2894.35,0.00020821,2]
[321952556,1712649050573,-500.0,0.00020821,2]
[321952557,1712649050583,-500.0,0.00020821,2]
[321952558,1712649050592,-701.77,0.00020821,2]
[321952559,1712649050602,-500.0,0.00020821,2]
[321952560,1712649050612,-644.14,0.00020821,2]
[321952561,1712649050621,-500.0,0.00020821,2]
[321952562,1712649050630,-500.0,0.00020821,2]
[321952563,1712649050640,-2063.39,0.00020821,2]
[321952564,1712649050650,-500.0,0.00020821,2]
[321952565,1712649050660,-500.0,0.00020821,2]
[321952566,1712649050669,-3293.58,0.00020821,2]
[321952567,1712649050678,-500.0,0.00020821,2]
[321952568,1712649050688,-500.0,0.00020821,2]
[321952569,1712649050697,-8036.67,0.00020821,2]
[321952570,1712649050706,-535.16,0.00020821,2]
[321952571,1712649050716,-10936.07,0.00020821,2]
[321952572,1712649050725,-500.0,0.00020821,2]
[321952573,1712649050734,-1972.74,0.00020821,2]
[321952574,1712649050744,-523.79,0.00020821,2]
[321952575,1712649050754,-500.0,0.00020821,2]
[321952576,1712649050765,-500.0,0.00020821,2]
[321952577,1712649050775,-394.03995771,0.00020821,2]
[321952578,1712649050785,-500.0,0.00020821,2]
[321952579,1712649050794,-1059.12,0.00020821,2]
[321952580,1712649050804,-500.0,0.00020821,2]
[321952581,1712649050813,-537.83347954,0.00020821,2]
[321952582,1712649050823,-500.0,0.00020821,2]
[321952583,1712649050833,-500.0,0.00020821,2]
[321952584,1712649050843,-1236.45,0.00020821,2]
[321952585,1712649050853,-53627.83,0.00020821,2]
[321952586,1712649050863,-7259.57,0.00020821,2]
[321952587,1712649050872,-500.0,0.00020821,2]
[321952588,1712649050882,-500.0,0.00020821,2]
[321952589,1712649050891,-500.0,0.00020821,2]
[321952590,1712649050901,-1092.94,0.00020821,2]
[321952591,1712649050910,-2182.43,0.00020821,2]
[321952592,1712649050920,-931.45,0.00020821,2]
[321952593,1712649050929,-805.54,0.00020821,2]
[321952594,1712649050939,-3597.86,0.00020821,2]
[321952595,1712649050948,-18775.45,0.00020821,2]
[321952596,1712649050958,-500.0,0.00020821,2]
[321952597,1712649050967,-894.01,0.00020821,2]
[321952598,1712649050977,-5685.92,0.00020821,2]
[321952599,1712649050986,-500.0,0.00020821,2]
[321952600,1712649050996,-531.59876044,0.00020821,2]
[321952601,1712649051005,-858.13,0.00020821,2]
[321952602,1712649051014,-500.0,0.00020821,2]
[321952603,1712649051024,-500.0,0.00020821,2]
[321952604,1712649051034,-2756.82,0.00020821,2]
[321952605,1712649051044,-500.0,0.00020821,2]
[321952606,1712649051053,-500.0,0.00020821,2]
[321952607,1712649051063,-500.0,0.00020821,2]
[321952608,1712649051073,-293.22016919,0.00020821,2]
[321952609,1712649051082,-916.3,0.00020821,2]
[321952610,1712649051092,-4455.06,0.00020821,2]
[321952611,1712649051101,-4061.71,0.00020821,2]
[321952612,1712649051112,-500.0,0.00020821,2]
[321952613,1712649051121,-6945.47,0.00020821,2]
[321952614,1712649051130,-500.0,0.00020821,2]
[321952615,1712649051141,-536.11,0.00020821,2]
[321952616,1712649051150,-540.69,0.00020821,2]
[321952617,1712649051160,-500.0,0.00020821,2]
[321952618,1712649051169,-4784.07,0.00020821,2]
[321952619,1712649051178,-3496.1,0.00020821,2]
[321952620,1712649051187,-500.0,0.00020821,2]
[321952621,1712649051197,-832.93,0.00020821,2]
[321952622,1712649051206,-1306.74,0.00020821,2]
[321952623,1712649051216,-902.39,0.00020821,2]